[Event "31st Kavala Open-A 2022"]
[Site "Kavala"]
[Date "2022.07.31"]
[Round "7.1"]
[White "Kourkoulos-Arditis, Stamatis"]
[Black "Bharath Subramaniyam H"]
[Result "1/2-1/2"]
[ECO "E04"]
[WhiteElo "2535"]
[BlackElo "2479"]
[Annotator "TA"]
[PlyCount "109"]
[EventDate "2022.07.27"]
[EventType "swiss"]
[EventCountry "GRE"]
[SourceTitle "playchess.com"]
[Source "ChessBase"]
[SourceQuality "1"]
[TimeControl "40/5400+30:1800+30"]

{[%evp 12,109,16,14,25,18,22,-4,39,39,42,39,39,24,39,36,41,45,45,41,43,41,41,47,52,0,45,46,48,50,57,10,39,3,0,0,0,0,0,0,0,0,0,0,0,0,0,0,0,0,0,0,0,0,0,0,0,0,0,0,0,0,0,0,0,0,0,0,0,0,0,0,0,0,0,0,72,0,0,0,0,0,0,0,0,0,0,0,0,0,0,0,0,-16,0,0,0,0,0,0]} 1. d4 {[%emt 0:00:03]} d5 {[%emt 0:00:25]} 2. c4 {[%emt 0:00:05]} e6 {[%emt 0:02:17]} 3. Nf3 {[%emt 0:00:08]} Nf6 {[%emt 0:00:10]} 4. g3 {[%emt 0:00:04]} dxc4 {[%emt 0:03:02]} 5. Bg2 {[%emt 0:00:07]} c5 {[%emt 0:02:39]} 6. O-O {[%emt 0:00:15]} Nc6 {[%emt 0:03:18]} 7. dxc5 {[%emt 0:00:23]} Qxd1 {[%emt 0:02:05] E04: Open Catalan: 5 Nf3.} 8. Rxd1 {[%emt 0:00:04]} Bxc5 {[%emt 0:00:14]} 9. Nfd2 {[%emt 0:00:09][%cal Bf3d2,Bd2e4,Be4c5][%mdl 32]} (9. Nbd2 $5 {[%cal Rd2c4]}) 9... Nd4 {[%emt 0:03:54] Strongly threatening ...Nc2.} 10. Nc3 {[%emt 0:01:11]} Nd5 $1 {[%emt 0:02:12]} 11. Nxd5 {[%emt 0:15:31]} exd5 {[%emt 0:00:06]} 12. Bxd5 {[%emt 0:00:05]} O-O {[%emt 0:00:08] [#]} 13. Ne4 $146 {[%emt 0:08:33]} ({Predecessor:} 13. Bxc4 Rd8 14. Bd3 Bg4 15. Kf1 Bh3+ 16. Kg1 Bg4 17. Kf1 Re8 18. Nb3 Nxe2 19. Nxc5 {½-½ (30) Turov,M (2567)-Fridman,D (2622) Tallinn 2020}) 13... Rd8 {[%emt 0:05:02]} 14. Nxc5 {[%emt 0:06:27]} ({Worse is} 14. Bxc4 Nf3+ $1 {[%mdl 512]} 15. Kg2 Rxd1 $17) 14... Rxd5 {[%emt 0:00:29]} 15. Be3 $1 {[%emt 0:00:09]} Nxe2+ {[%emt 0:03:05]} 16. Kg2 {[%emt 0:00:41]} Rxd1 {[%emt 0:00:42]} 17. Rxd1 {[%emt 0:00:07][%cal Rd1d8]} Bf5 {[%emt 0:02:32]} 18. Rd5 {[%emt 0:18:33]} ({But not} 18. Nxb7 c3 19. bxc3 Nxc3 20. Rd8+ Rxd8 21. Nxd8 Be4+ 22. f3 Bd5 $17) ({White should try} 18. Kf3 $14 b6 19. Kxe2 bxc5 20. Bxc5) 18... Bb1 {[%emt 0:18:46]} 19. Kf1 {[%emt 0:08:42]} b6 {[%emt 0:00:44][%cal Ob1a2]} 20. Kxe2 {[%emt 0:00:07] Na4 is the strong threat.} bxc5 $14 {[%emt 0:00:05][%mdl 4096] Endgame KRB-KRB} 21. a4 {[%emt 0:01:59]} (21. a3 $14 {should be considered.}) 21... Rb8 {[%emt 0:03:54]} 22. Kd1 {[%emt 0:00:24]} Ba2 {[%emt 0:02:37] And now ...c3 would win.} 23. Rxc5 {[%emt 0:00:36]} Bb3+ {[%emt 0:00:28]} 24. Kd2 {[%emt 0:00:08]} Bxa4 {[%emt 0:01:06]} 25. Rxc4 {[%emt 0:00:07]} Rd8+ {[%emt 0:00:48]} (25... Rxb2+ $2 26. Kc1 Rc2+ 27. Rxc2 $18) 26. Kc3 {[%emt 0:00:21]} Bb5 {[%emt 0:00:15]} 27. Rc7 {[%emt 0:00:08]} a6 {[%emt 0:00:25]} 28. Kb4 {[%emt 0:01:11]} h6 {[%emt 0:01:04]} 29. Ka5 {[%emt 0:00:16]} Rd3 {[%emt 0:03:44]} 30. b4 {[%emt 0:00:48]} Ra3+ {[%emt 0:03:18]} 31. Kb6 {[%emt 0:00:05]} Ra2 {[%emt 0:00:31]} 32. h4 {[%emt 0:02:11]} Be2 {[%emt 0:02:57]} 33. Bc5 {[%emt 0:03:54]} Ra1 {[%emt 0:06:39]} 34. Re7 {[%emt 0:03:27]} Bc4 {[%emt 0:00:29]} 35. Rc7 {[%emt 0:03:04]} Be2 {[%emt 0:00:17]} 36. Ra7 {[%emt 0:00:12]} Bc4 {[%emt 0:02:08]} 37. Be3 {[%emt 0:00:28]} Rb1 {[%emt 0:01:36]} 38. Kc5 {[%emt 0:00:32]} Be2 {[%emt 0:01:34]} 39. Ra8+ {[%emt 0:03:15]} Kh7 {[%emt 0:00:02]} 40. Rf8 {[%emt 0:00:00]} Kg6 {[%emt 0:00:00]} 41. Re8 {[%emt 0:01:09]} Bf1 {[%emt 0:05:57]} 42. Ra8 {[%emt 0:02:43]} Ra1 {[%emt 0:03:51]} 43. Rg8 {[%emt 0:02:58]} Bb5 {[%emt 0:11:07]} (43... Rd1 $11 {keeps the balance.}) 44. Bd4 {[%emt 0:07:42]} (44. h5+ $16 Kh7 {[#]} 45. Rxg7+ $1 Kxg7 46. Bd4+ Kf8 47. Bxa1) 44... Rc1+ $11 {[%emt 0:00:08] The position is equal.} 45. Kb6 {[%emt 0:00:05]} f6 {[%emt 0:05:30]} 46. Bc5 {[%emt 0:00:59]} Re1 {[%emt 0:00:59]} 47. h5+ {[%emt 0:02:36]} Kh7 {[%emt 0:00:22]} 48. Ra8 {[%emt 0:00:08]} Re6+ {[%emt 0:00:39]} 49. Ka5 {[%emt 0:00:25]} Be2 {[%emt 0:01:03]} 50. Ra7 {[%emt 0:01:55]} Kg8 {[%emt 0:02:04]} 51. f4 {[%emt 0:02:34]} Bc4 {[%emt 0:04:10]} 52. Bb6 {[%emt 0:06:06]} Kh7 {[%emt 0:01:00]} 53. Bd4 {[%emt 0:01:13]} Kg8 {[%emt 0:03:06]} 54. Bc5 {[%emt 0:00:13]} Bf1 {[%emt 0:00:56]} 55. Ra8+ {[%emt 0:01:01] Weighted Error Value: White=0.06 (flawless) /Black=0.07 (flawless)} 1/2-1/2

[Event "31st Kavala Open-A 2022"]
[Site "Kavala"]
[Date "2022.07.31"]
[Round "7.2"]
[White "Karthik Venkataraman"]
[Black "Kilic, Eray"]
[Result "1-0"]
[ECO "B30"]
[WhiteElo "2483"]
[BlackElo "2422"]
[Annotator "TA"]
[PlyCount "95"]
[EventDate "2022.07.27"]
[EventType "swiss"]
[EventCountry "GRE"]
[SourceTitle "playchess.com"]
[Source "ChessBase"]
[SourceQuality "1"]
[TimeControl "40/5400+30:1800+30"]

{[%evp 9,95,12,38,43,47,2,9,7,9,10,9,8,11,7,14,0,11,3,50,56,47,24,28,24,86,99,89,96,97,101,122,119,139,136,157,162,189,202,208,156,151,161,148,150,163,170,164,156,164,152,181,183,203,210,197,196,253,235,238,239,237,233,235,220,411,411,411,411,411,411,378,379,411,411,411,411,650,588,561,471,1392,991,29974,29974,29973,29973,29965,6079]} 1. e4 {[%emt 0:04:42]} c5 {[%emt 0:00:03]} 2. Nf3 {[%emt 0:00:03]} Nc6 {[%emt 0:00:05]} 3. Bb5 {[%emt 0:00:31]} e6 {[%emt 0:00:11]} 4. O-O {[%emt 0:00:40]} Nge7 {[%emt 0:00:13]} 5. Re1 {[%emt 0:01:01]} b6 {[%emt 0:00:06]} 6. c3 {[%emt 0:00:45] B30: Sicilian: 2...Nc6 3 Bb5, lines without ...g6.} a6 {[%emt 0:00:22]} 7. Bxc6 {[%emt 0:00:43]} Nxc6 {[%emt 0:00:19]} 8. d4 {[%emt 0:00:04] The position is equal.} d5 {[%emt 0:00:44] [#]} 9. Bg5 $146 {[%emt 0:11:06]} ({Predecessor:} 9. exd5 Qxd5 10. dxc5 Qxd1 11. Rxd1 Bxc5 12. Nbd2 Bb7 13. Nc4 b5 14. Nd6+ Bxd6 15. Rxd6 Ke7 {½-½ (15) Muzychuk,M (2539)-Bellahcene,B (2508) Gibraltar 2022}) 9... f6 {[%emt 0:10:42]} 10. exd5 {[%emt 0:03:32]} Qxd5 {[%emt 0:00:22]} 11. Be3 {[%emt 0:01:16][%cal Oc3c4]} cxd4 {[%emt 0:03:18]} 12. cxd4 {[%emt 0:02:22] aiming for Nc3.} Bb4 {[%emt 0:01:27]} 13. Bd2 {[%emt 0:00:08]} O-O {[%emt 0:13:01]} (13... Bxd2 $11 14. Qxd2 (14. Nbxd2 O-O $11) 14... O-O) 14. Bxb4 $14 {[%emt 0:00:13]} Nxb4 {[%emt 0:00:02]} 15. a3 $1 {[%emt 0:00:07]} Nc6 {[%emt 0:00:36]} 16. Nc3 {[%emt 0:00:04]} Qd6 {[%emt 0:04:16]} (16... Qh5 $11 {remains equal.}) 17. d5 $16 {[%emt 0:02:37]} exd5 {[%emt 0:17:22]} 18. Nxd5 {[%emt 0:00:44][%cal Od5e7]} ({Of course not} 18. Qxd5+ $6 Qxd5 19. Nxd5 Bg4 $11) 18... Ne5 {[%emt 0:01:17] [#]} 19. Nxf6+ {[%emt 0:06:31]} Rxf6 {[%emt 0:00:04]} (19... Qxf6 20. Qd5+) 20. Nxe5 {[%emt 0:01:32]} ({Resist} 20. Rxe5 Qxd1+ 21. Rxd1 Bg4 $14) 20... Qc5 {[%emt 0:07:34]} 21. Qd2 {[%emt 0:01:54]} Rd6 {[%emt 0:04:18]} 22. Qf4 {[%emt 0:01:50] Qf7+ would kill now.} Be6 {[%emt 0:02:12] Inhibits Qf7+.} 23. Rac1 {[%emt 0:01:30]} Qd5 {[%emt 0:07:09]} 24. h3 {[%emt 0:02:49] Threatens to win with Rc7.} Rf8 {[%emt 0:03:26]} 25. Qg3 $40 {[%emt 0:00:51][%mdl 128] Strongly threatening Rc7. Black is in trouble. White is more active.} Qd2 {[%emt 0:05:39]} 26. Nf3 {[%emt 0:01:26][%cal Be5f3,Bf3g5,Bg5e4][%mdl 32]} Qf4 {[%emt 0:00:25]} 27. Qxf4 {[%emt 0:00:12]} Rxf4 {[%emt 0:00:02]} 28. Ng5 {[%emt 0:00:06]} Bd7 {[%emt 0:00:52] [#]} 29. Rc7 $1 {[%emt 0:08:35]} h6 {[%emt 0:01:27] [#]} 30. Ne4 {[%emt 0:00:25]} Rd4 {[%emt 0:00:16]} 31. f3 {[%emt 0:02:03]} Rf7 {[%emt 0:03:24]} 32. Rb7 {[%emt 0:02:25]} Bb5 {[%emt 0:01:00]} (32... b5 $142 33. Ra7 Bc8) 33. Rb8+ {[%emt 0:01:54]} Kh7 {[%emt 0:00:12]} 34. Rxb6 {[%emt 0:00:06]} Rc7 {[%emt 0:01:02]} 35. Rd6 {[%emt 0:00:06]} Rxd6 {[%emt 0:04:03]} 36. Nxd6 {[%emt 0:00:22]} Rc2 $2 {[%emt 0:01:29]} (36... Bd3 37. Rd1 Bg6) 37. Nxb5 $18 {[%emt 0:00:05]} axb5 {[%emt 0:00:01][%mdl 4096] Endgame KR-KR} 38. b4 {[%emt 0:00:13][%cal Bb2b4,Bb4b5,Bb5b6,Bb6b7][%mdl 32]} Ra2 {[%emt 0:00:15]} 39. Re5 {[%emt 0:00:12]} Rxa3 {[%emt 0:00:11]} 40. Rxb5 {[%emt 0:00:00]} Rb3 {[%emt 0:00:00]} 41. Rb8 {[%emt 0:00:32]} Kg6 {[%emt 0:00:37]} 42. b5 {[%emt 0:00:06] Hoping for b6.} Kh5 {[%emt 0:00:58]} (42... h5 $142 43. b6 Rb2) 43. Kh2 {[%emt 0:00:58]} Rb2 {[%emt 0:01:30]} 44. Kg3 {[%emt 0:01:33]} g5 {[%emt 0:01:42]} (44... Kg5 $142 45. h4+ Kg6) 45. b6 {[%emt 0:01:44] White wants to mate with b7.} Rb3 {[%emt 0:09:34]} 46. b7 {[%emt 0:01:52] White mates.} Rb4 {[%emt 0:00:43]} 47. h4 {[%emt 0:00:06]} gxh4+ {[%emt 0:00:26]} 48. Kh2 {[%emt 0:02:33] Weighted Error Value: White=0.03 (flawless) /Black=0.37} 1-0

[Event "31st Kavala Open-A 2022"]
[Site "Kavala"]
[Date "2022.07.31"]
[Round "7.3"]
[White "Schroeder, Jan-Christian"]
[Black "Beerdsen, Thomas"]
[Result "1/2-1/2"]
[ECO "B33"]
[WhiteElo "2563"]
[BlackElo "2500"]
[Annotator "TA"]
[PlyCount "66"]
[EventDate "2022.07.27"]
[EventType "swiss"]
[EventCountry "GRE"]
[SourceTitle "playchess.com"]
[Source "ChessBase"]
[SourceQuality "1"]
[TimeControl "40/5400+30:1800+30"]

{[%evp 28,66,0,0,6,0,9,12,25,22,28,7,6,14,10,0,0,0,0,0,0,-18,-9,-12,6,6,16,-63,0,-19,0,0,34,0,0,0,13,0,0,0,22]} 1. e4 {[%emt 0:01:00] Rogozenco,D} c5 {[%emt 0:00:07]} 2. Nf3 {[%emt 0:00:04][%cal Bg1f3,Bf3d4,Bd4b5,Bb5a3,Ba3c2][%mdl 32]} e6 {[%emt 0:00:07][%cal Be7e6,Be6e5][%mdl 32]} 3. d4 {[%emt 0:00:05]} cxd4 {[%emt 0:00:06]} 4. Nxd4 {[%emt 0:00:04]} Nc6 {[%emt 0:00:07]} 5. Nc3 {[%emt 0:00:06]} Nf6 {[%emt 0:00:07]} 6. Ndb5 {[%emt 0:02:51]} d6 {[%emt 0:00:10]} 7. Bf4 {[%emt 0:00:35]} e5 {[%emt 0:00:06]} 8. Bg5 {[%emt 0:00:11]} a6 {[%emt 0:00:08]} 9. Na3 {[%emt 0:00:06]} b5 {[%emt 0:00:07]} 10. Nd5 {[%emt 0:00:21]} Be7 {[%emt 0:00:11]} 11. Bxf6 {[%emt 0:00:13]} Bxf6 {[%emt 0:00:05]} 12. c3 {[%emt 0:00:56]} Bg5 {[%emt 0:00:50]} 13. Nc2 {[%emt 0:00:31]} Rb8 {[%emt 0:00:18]} 14. g3 {[%emt 0:04:09]} O-O {[%emt 0:02:09]} 15. Bg2 {[%emt 0:01:40]} Bh6 {[%emt 0:05:16] 15...Ne7 is a critical line. B33: Sicilian: Pelikan and Sveshnikov Variations.} 16. O-O {[%emt 0:01:40]} Be6 {[%emt 0:03:04]} 17. Qd3 {[%emt 0:06:23] [#]} a5 $146 {[%emt 0:05:01]} ({Predecessor:} 17... Qd7 18. Rfd1 a5 19. a3 a4 20. Ndb4 Rfd8 21. Nxc6 Qxc6 22. Nb4 Qb7 23. Nd5 Rbc8 24. Qf3 Rc5 {1-0 (66) Volokitin,A (2566)-De Vreugt,D (2437) Lvov 2001 CBM 087 [Rogozenco,D]}) 18. Rfd1 {[%emt 0:05:21]} (18. Na3 $5 {[%cal Ra3b5]}) 18... b4 {[%emt 0:06:24]} 19. c4 {[%emt 0:25:03]} g6 {[%emt 0:07:52]} 20. b3 {[%emt 0:00:48]} Bg7 {[%emt 0:03:09]} 21. a3 {[%emt 0:03:54]} bxa3 {[%emt 0:02:32]} 22. Rxa3 {[%emt 0:00:03]} Rb7 {[%emt 0:03:45]} 23. Qe2 {[%emt 0:05:06]} Qb8 {[%emt 0:02:30]} 24. Rd3 {[%emt 0:05:00]} Rc8 {[%emt 0:04:45]} 25. Qe3 {[%emt 0:07:14]} Bxd5 {[%emt 0:16:56]} 26. exd5 {[%emt 0:08:22]} Ne7 {[%emt 0:09:16]} 27. h4 {[%emt 0:09:32]} (27. Rxa5 $11 Nf5 28. Qf3) 27... h5 {[%emt 0:01:51]} ({Better is} 27... Nf5 $15 28. Qe2 Re8) 28. Bh3 {[%emt 0:03:11]} Rc5 {[%emt 0:03:39]} 29. Ne1 {[%emt 0:01:26]} Rb4 {[%emt 0:05:10]} 30. Nc2 {[%emt 0:01:53]} Rb6 {[%emt 0:00:42] The position is equal.} 31. Ne1 {[%emt 0:04:27]} Rb4 {[%emt 0:06:21]} 32. Nc2 {[%emt 0:00:00]} Rb7 {[%emt 0:00:14]} 33. Ne1 {[%emt 0:00:00]} Rb4 {[%emt 0:01:02] Not much happened in this game.  Weighted Error Value: White=0.13 (very precise) /Black=0.10 (very precise)} 1/2-1/2

[Event "31st Kavala Open-A 2022"]
[Site "Kavala"]
[Date "2022.07.31"]
[Round "7.4"]
[White "Gopal G.N."]
[Black "Yilmazyerli, Mert"]
[Result "1/2-1/2"]
[ECO "B30"]
[WhiteElo "2593"]
[BlackElo "2520"]
[Annotator "TA"]
[PlyCount "93"]
[EventDate "2022.07.27"]
[EventType "swiss"]
[EventCountry "GRE"]
[SourceTitle "playchess.com"]
[Source "ChessBase"]
[SourceQuality "1"]
[TimeControl "40/5400+30:1800+30"]

{[%evp 9,93,0,7,0,8,0,49,54,50,50,51,47,58,61,75,57,48,41,52,51,48,22,37,25,78,0,0,0,0,0,54,52,81,81,81,81,81,81,81,81,81,77,92,65,79,80,92,92,92,72,72,71,78,75,77,75,92,72,92,82,85,75,75,75,72,77,72,70,76,72,73,73,79,19,106,0,0,0,0,0,0,0,0,0,0,-52]} 1. e4 {[%emt 0:00:04]} c5 {[%emt 0:10:56]} 2. Nf3 {[%emt 0:00:05]} Nc6 {[%emt 0:00:05]} 3. Bb5 {[%emt 0:00:03]} e6 {[%emt 0:00:04]} 4. Bxc6 {[%emt 0:00:51]} bxc6 {[%emt 0:00:07]} 5. d3 {[%emt 0:00:02]} Ne7 {[%emt 0:00:29]} 6. Nbd2 {[%emt 0:00:34] B30: Sicilian: 2...Nc6 3 Bb5, lines without ...g6.} d6 {[%emt 0:03:53]} 7. e5 {[%emt 0:00:14]} Nf5 {[%emt 0:05:44]} (7... d5 $11) 8. exd6 $1 $14 {[%emt 0:02:53] White is slightly better.} Bxd6 {[%emt 0:00:18] [#]} 9. Ne4 $146 {[%emt 0:08:04]} ({Predecessor:} 9. Nc4 Be7 10. O-O f6 11. Nfd2 O-O 12. Ne4 e5 13. b3 Be6 14. Ba3 Bxc4 15. dxc4 {0-1 (34) Anand,V (2756)-Gelfand,B (2668) Leon 2022}) 9... Be7 {[%emt 0:02:52]} 10. Ne5 {[%emt 0:01:12]} Qc7 {[%emt 0:04:29]} 11. Bf4 {[%emt 0:13:54][%cal Oe5g6] [#] Ng6! is the strong threat.} Qb7 {[%emt 0:08:08]} 12. Nc4 {[%emt 0:01:43] Strongly threatening g4. 0x0.001e3abb8b89dp-1022s more active pieces. The black rooks are badly placed. Pair of Knights!} O-O {[%emt 0:02:22]} 13. O-O {[%emt 0:05:24]} f6 {[%emt 0:03:13]} 14. b3 {[%emt 0:12:44]} e5 {[%emt 0:00:30]} 15. Bc1 {[%emt 0:09:06][%cal Bf4c1,Bc1a3,Ba3b2,Bb2c3][%mdl 32]} Be6 {[%emt 0:01:38]} 16. Ba3 {[%emt 0:02:46]} Qb5 {[%emt 0:02:18]} (16... Bxc4 $11 17. bxc4 Qb6) 17. Ne3 {[%emt 0:04:26]} ({White should play} 17. Kh1 $16) 17... Nxe3 $11 {[%emt 0:10:23]} 18. fxe3 {[%emt 0:00:01]} Qa5 $1 {[%emt 0:02:25]} 19. Bb2 {[%emt 0:06:00]} Rad8 {[%emt 0:10:00]} (19... f5 $11 20. Bc3 Qb6) 20. Bc3 $36 {[%emt 0:02:37][%mdl 2048] White is pushing.} Qc7 {[%emt 0:03:41]} 21. Qe1 {[%emt 0:00:17]} Qd7 {[%emt 0:03:04]} 22. Nd2 {[%emt 0:01:29]} Bd6 {[%emt 0:02:50]} 23. e4 {[%emt 0:00:31]} Bc7 {[%emt 0:00:45]} 24. Kh1 {[%emt 0:00:45]} Rde8 {[%emt 0:01:22]} 25. Qh4 {[%emt 0:03:35]} a6 {[%emt 0:04:49]} 26. Rf3 {[%emt 0:02:05]} Bg4 {[%emt 0:02:47]} 27. Rf2 {[%emt 0:00:48]} Bd8 {[%emt 0:01:56]} 28. Qg3 {[%emt 0:01:25]} Be6 {[%emt 0:00:05]} 29. Re1 {[%emt 0:02:52]} Bb6 {[%emt 0:00:49][%cal Oc5c4]} 30. Rf3 {[%emt 0:01:00]} Bg4 {[%emt 0:03:11]} 31. Rff1 {[%emt 0:00:10]} Be6 {[%emt 0:00:08]} 32. h3 {[%emt 0:00:44]} Qd8 {[%emt 0:00:06]} 33. Re2 {[%emt 0:05:07]} Bf7 {[%emt 0:06:03]} 34. Nf3 {[%emt 0:04:37]} Bh5 {[%emt 0:00:21]} 35. Qh4 {[%emt 0:01:07]} Bxf3 {[%emt 0:01:46]} 36. Rxf3 {[%emt 0:01:02]} Ba5 {[%emt 0:00:33]} 37. Bxa5 {[%emt 0:04:56]} Qxa5 {[%emt 0:00:05]} 38. a4 {[%emt 0:00:07]} Rd8 {[%emt 0:01:41]} 39. Kh2 {[%emt 0:01:11]} Kh8 {[%emt 0:00:17]} 40. Ref2 {[%emt 0:00:00]} c4 {[%emt 0:00:00]} 41. bxc4 {[%emt 0:06:19]} (41. dxc4 $16 Qe1 42. Qg4 (42. Rd3 Rxd3 43. cxd3 Rb8 $11)) 41... Qxa4 {[%emt 0:02:14] [#]} (41... h6 $11 {remains equal.}) 42. g4 {[%emt 0:00:40]} (42. Rf5 $1 $16 {[%cal Rf5h5] Threatening mate with Rh5.} Rd7 43. Rxe5) 42... Qb4 {[%emt 0:04:11] The position is equal.} 43. g5 {[%emt 0:02:16]} fxg5 {[%emt 0:02:56]} 44. Qxg5 {[%emt 0:00:10] Black must now prevent Rf7.} Qd6 {[%emt 0:00:36]} 45. Rf7 {[%emt 0:10:22]} Rxf7 {[%emt 0:01:52]} 46. Rxf7 {[%emt 0:00:01][%csl Gf7][%cal Rg5g7]} Rg8 {[%emt 0:00:09]} 47. Qe3 {[%emt 0:08:34] Weighted Error Value: White=0.11 (very precise) /Black=0.12 (very precise)} ({White should try} 47. Qe7 $11 Qxe7 48. Rxe7) 1/2-1/2

[Event "31st Kavala Open-A 2022"]
[Site "Kavala"]
[Date "2022.07.31"]
[Round "7.5"]
[White "Ladopoulos, Dimitrios"]
[Black "Gagare, Shardul"]
[Result "1/2-1/2"]
[ECO "A35"]
[WhiteElo "2335"]
[BlackElo "2514"]
[Annotator "TA"]
[PlyCount "67"]
[EventDate "2022.07.27"]
[EventType "swiss"]
[EventCountry "GRE"]
[SourceTitle "playchess.com"]
[Source "ChessBase"]
[SourceQuality "1"]
[TimeControl "40/5400+30:1800+30"]

{[%evp 19,67,17,22,-2,16,14,23,15,17,-6,-9,-9,-4,-12,0,-1,0,0,0,-5,-11,-9,0,0,0,-27,-22,-41,-1,-3,-3,-2,-1,0,0,0,0,0,0,0,0,-5,-6,-5,-5,-5,-5,-8,-8,-8]} 1. Nf3 {[%emt 0:01:35]} c5 {[%emt 0:02:45]} 2. b3 {[%emt 0:06:38]} Nc6 {[%emt 0:00:38]} 3. Bb2 {[%emt 0:01:41]} Nf6 {[%emt 0:00:35]} 4. e3 {[%emt 0:03:19]} g6 {[%emt 0:00:13]} 5. c4 {[%emt 0:08:08]} Bg7 {[%emt 0:00:12]} 6. Be2 {[%emt 0:00:31]} O-O {[%emt 0:00:10]} 7. O-O {[%emt 0:05:30]} d6 {[%emt 0:00:27]} 8. d4 {[%emt 0:01:06]} cxd4 {[%emt 0:04:38]} 9. Nxd4 {[%emt 0:00:37]} Bd7 {[%emt 0:01:01]} 10. Nc3 {[%emt 0:00:51]} a6 {[%emt 0:00:19] 10...Rc8 deserves study.} 11. Rc1 {[%emt 0:08:42] A35: Symmetrical English: 2 Nc3 Nc6 3 Nf3.} Qa5 {[%emt 0:13:25]} 12. a3 {[%emt 0:08:23]} Rfc8 {[%emt 0:02:25]} 13. b4 {[%emt 0:01:39] White has an edge.} Qd8 {[%emt 0:02:07] [#]} 14. Na4 $146 {[%emt 0:12:05]} ({Predecessor:} 14. Qb3 Rab8 15. Rfd1 Qe8 16. Nf3 Bg4 17. h3 Bxf3 18. Bxf3 Nd7 19. Nd5 Bxb2 20. Qxb2 {1-0 (141) Molina,R (2400)-Hua,L (2305) Chess.com INT 2022}) 14... b5 {[%emt 0:09:18]} 15. cxb5 {[%emt 0:02:34]} Nxd4 {[%emt 0:00:51]} 16. Bxd4 {[%emt 0:01:21]} Rxc1 {[%emt 0:06:04]} 17. Qxc1 {[%emt 0:00:07]} Bxb5 {[%emt 0:06:51]} 18. Nc3 {[%emt 0:01:08]} Rc8 {[%emt 0:10:11]} 19. Qd1 {[%emt 0:05:03]} Bxe2 {[%emt 0:07:29]} 20. Nxe2 {[%emt 0:00:10]} Rc4 {[%emt 0:11:46]} 21. Qb3 {[%emt 0:05:49]} Qc7 {[%emt 0:02:44]} 22. b5 {[%emt 0:10:33]} axb5 {[%emt 0:00:16]} 23. Qxb5 {[%emt 0:00:08]} e5 {[%emt 0:04:32]} 24. Bb6 {[%emt 0:04:34] The position is equal.} Qc6 {[%emt 0:01:03]} 25. Qxc6 {[%emt 0:00:19]} Rxc6 {[%emt 0:00:05]} 26. Ba5 {[%emt 0:01:00]} Rc2 {[%emt 0:03:51]} 27. Nc3 {[%emt 0:02:11]} d5 {[%emt 0:03:09]} 28. Rd1 {[%emt 0:02:06] Inhibits d4.} Bf8 {[%emt 0:02:07]} 29. h3 {[%emt 0:01:47]} Bxa3 {[%emt 0:04:37]} 30. Bd8 {[%emt 0:01:50] [#] And now Nb5 would win.} Ne4 {[%emt 0:00:58]} 31. Nxe4 {[%emt 0:00:25]} dxe4 {[%emt 0:00:05]} 32. Bf6 {[%emt 0:00:07] Rd8+ is the strong threat.} Rc1 {[%emt 0:01:02]} 33. Rxc1 {[%emt 0:00:05]} Bxc1 {[%emt 0:00:04]} 34. Bxe5 {[%emt 0:00:07] An interesting draw.  Weighted Error Value: White=0.04 (flawless) /Black=0.03 (flawless)} 1/2-1/2